[Event "Championnat du monde jeunes U10"]
[Date "2024.11.19"]
[White "Qian, Qipeng"]
[Black "Fattori Dittmar, Luca"]
[WhiteElo "1641"]
[BlackElo "1766"]
[Round "5.42"]
[Result "1/2-1/2"]
[TimeControl "5400+30"]

1. d4 {[%clk 1:30:20]} 1... Nf6 {[%clk 1:30:43]} 2. c4 {[%clk 1:30:41]} 2... g6
{[%clk 1:30:42]} 3. Nc3 {[%clk 1:31:06]} 3... Bg7 {[%clk 1:30:51]} 4. e4 {[%clk
1:31:31]} 4... d6 {[%clk 1:31:16]} 5. Be2 {[%clk 1:31:58]} 5... O-O {[%clk
1:31:24]} 6. Bg5 {[%clk 1:32:25]} 6... Na6 {[%clk 1:31:01]} 7. Nf3 {[%clk
1:32:20]} 7... c6 {[%clk 1:26:10]} 8. O-O {[%clk 1:32:19]} 8... Nc7 {[%clk
1:24:55]} 9. Qc2 {[%clk 1:25:48]} 9... d5 {[%clk 1:24:14]} 10. cxd5 {[%clk
1:25:12]} 10... cxd5 {[%clk 1:24:20]} 11. e5 {[%clk 1:25:40]} 11... Nd7 {[%clk
1:21:27]} 12. Rac1 {[%clk 1:24:42]} 12... Nb8 {[%clk 1:17:35]} 13. Nb5 {[%clk
1:24:43]} 13... Nxb5 {[%clk 1:17:43]} 14. Bxb5 {[%clk 1:25:01]} 14... h6 {[%clk
1:15:56]} 15. Bh4 {[%clk 1:25:23]} 15... g5 {[%clk 1:15:01]} 16. Bg3 {[%clk
1:24:59]} 16... Qb6 {[%clk 1:14:46]} 17. Qc5 {[%clk 1:23:51]} 17... Qxc5 18.
Rxc5 {[%clk 1:24:06]} 18... a6 {[%clk 1:10:41]} 19. Ba4 {[%clk 1:23:16]} 19...
b5 {[%clk 1:09:09]} 20. Bb3 {[%clk 1:23:28]} 20... e6 {[%clk 1:07:54]} 21. Rfc1
{[%clk 1:23:43]} 21... Nd7 {[%clk 1:06:33]} 22. Rc7 {[%clk 1:23:25]} 22... Nb6
{[%clk 1:05:35]} 23. Bd1 {[%clk 1:23:28]} 23... Bd7 {[%clk 1:04:25]} 24. Rb7
{[%clk 1:19:26]} 24... Rab8 {[%clk 1:00:48]} 25. Rcc7 {[%clk 1:18:43]} 25...
Rxb7 {[%clk 0:58:05]} 26. Rxb7 {[%clk 1:19:11]} 26... Rc8 {[%clk 0:58:23]} 27.
Kf1 {[%clk 1:18:03]} 27... Rc6 {[%clk 0:58:11]} 28. h4 {[%clk 1:13:06]} 28...
Bc8 {[%clk 0:52:38]} 29. Ra7 {[%clk 1:10:30]} 29... gxh4 {[%clk 0:49:54]} 30.
Bxh4 {[%clk 1:10:35]} 30... Rc1 {[%clk 0:48:05]} 31. Ke2 {[%clk 1:10:33]} 31...
Bf8 {[%clk 0:38:49]} 32. Bd8 {[%clk 1:09:49]} 32... Rc6 {[%clk 0:37:42]} 33. Nd2
{[%clk 1:08:58]} 33... Nc4 {[%clk 0:37:36]} 34. Nxc4 {[%clk 1:09:08]} 34... dxc4
{[%clk 0:36:39]} 35. Ke3 {[%clk 1:09:21]} 35... c3 {[%clk 0:36:26]} 36. bxc3
{[%clk 1:09:43]} 36... Rxc3+ {[%clk 0:36:25]} 37. Kd2 {[%clk 1:10:06]} 37... Bb4
{[%clk 0:35:56]} 38. Ke2 {[%clk 1:10:21]} 38... Rc4 {[%clk 0:35:40]} 39. Kd3 Be1
{[%clk 0:34:45]} 40. Bb3 {[%clk 1:09:57]} 40... Rxd4+ {[%clk 0:34:57]} 41. Ke2
{[%clk 1:10:03]} 41... Rxd8 {[%clk 0:32:21]} 42. Kxe1 {[%clk 1:10:27]} 42... Rd7
{[%clk 0:31:59]} 43. Ra8 {[%clk 1:10:49]} 43... Rc7 {[%clk 0:32:21]} 44. Kd2
{[%clk 1:11:12]} 44... Kg7 {[%clk 0:32:15]} 45. g3 {[%clk 1:11:24]} 45... Rd7+
{[%clk 0:30:45]} 46. Kc3 {[%clk 1:11:39]} 46... Bb7 {[%clk 0:31:02]} 47. Ra7
{[%clk 1:12:02]} 47... Bc8 {[%clk 0:29:39]} 48. Ra8 {[%clk 1:11:47]} 48... Bb7
{[%clk 0:29:15]} 49. Ra7 {[%clk 1:12:12]} 49... Bc8 {[%clk 0:29:06]} 50. Ra8
{[%clk 1:11:16]} 50... Bb7 {[%clk 0:29:11]} 51. Ra7 {[%clk 1:11:34]} 1/2-1/2

[Variant "Standard"]
[Site "Europe Echecs"]

[Event "Championnat du monde jeunes U10"]
[Date "2024.11.19"]
[White "Katta, Sriansh"]
[Black "Vedrickas, Vytis"]
[WhiteElo "1766"]
[BlackElo "1642"]
[Round "5.43"]
[Result "0-1"]
[TimeControl "5400+30"]

1. e4 {[%clk 1:30:59]} 1... c5 {[%clk 1:30:16]} 2. Nc3 {[%clk 1:31:22]} 2... g6
{[%clk 1:30:24]} 3. f4 {[%clk 1:31:46]} 3... Bg7 {[%clk 1:30:27]} 4. Nf3 {[%clk
1:32:08]} 4... Nc6 {[%clk 1:30:30]} 5. Bc4 {[%clk 1:32:34]} 5... e6 {[%clk
1:30:42]} 6. O-O {[%clk 1:32:56]} 6... Nge7 {[%clk 1:28:28]} 7. d3 {[%clk
1:33:04]} 7... O-O {[%clk 1:28:07]} 8. Qe1 {[%clk 1:33:28]} 8... d5 {[%clk
1:28:19]} 9. Bb3 {[%clk 1:33:52]} 9... Nd4 {[%clk 1:28:35]} 10. Nxd4 {[%clk
1:34:19]} 10... cxd4 {[%clk 1:28:52]} 11. Nd1 {[%clk 1:34:46]} 11... dxe4 {[%clk
1:29:02]} 12. dxe4 {[%clk 1:35:14]} 12... b5 {[%clk 1:28:59]} 13. Nf2 {[%clk
1:35:14]} 13... a5 {[%clk 1:29:06]} 14. a4 {[%clk 1:35:38]} 14... Bd7 {[%clk
1:29:02]} 15. Bd2 {[%clk 1:35:19]} 15... bxa4 {[%clk 1:29:02]} 16. Bxa4 {[%clk
1:35:41]} 16... Bxa4 {[%clk 1:29:21]} 17. Rxa4 {[%clk 1:36:10]} 17... Nc6 {[%clk
1:28:54]} 18. Nd3 {[%clk 1:34:42]} 18... Re8 {[%clk 1:25:30]} 19. Qf2 {[%clk
1:31:18]} 19... Ne7 {[%clk 0:59:28]} 20. Ne5 {[%clk 1:24:09]} 20... Qc7 {[%clk
0:52:10]} 21. c3 {[%clk 1:21:02]} 21... Qb7 {[%clk 0:46:24]} 22. Nc4 {[%clk
0:59:20]} 22... Qxe4 {[%clk 0:37:47]} 23. Nd6 {[%clk 0:58:54]} 23... Qc6 {[%clk
0:37:51]} 24. Nxe8 {[%clk 0:59:22]} 24... Qxa4 {[%clk 0:38:05]} 25. Nxg7 {[%clk
0:59:12]} 25... Kxg7 {[%clk 0:38:18]} 26. f5 {[%clk 0:47:17]} 26... exf5 {[%clk
0:29:36]} 27. Qh4 {[%clk 0:45:50]} 27... Ng8 {[%clk 0:28:54]} 28. cxd4 {[%clk
0:45:33]} 28... Re8 {[%clk 0:27:59]} 29. Bc3 {[%clk 0:41:25]} 29... f6 {[%clk
0:28:07]} 30. Qg3 {[%clk 0:41:00]} 30... Qd7 {[%clk 0:27:17]} 31. Rd1 {[%clk
0:34:55]} 31... Ne7 {[%clk 0:24:53]} 32. Qf3 {[%clk 0:25:51]} 32... a4 {[%clk
0:23:55]} 33. d5 {[%clk 0:16:52]} 33... Rd8 {[%clk 0:22:54]} 34. d6 {[%clk
0:17:07]} 34... Nc8 {[%clk 0:22:44]} 35. Bb4 {[%clk 0:17:09]} 35... Qb5 {[%clk
0:21:08]} 36. Qc3 {[%clk 0:14:49]} 36... Qe2 {[%clk 0:16:33]} 37. Qc7+ {[%clk
0:14:00]} 37... Kh6 {[%clk 0:15:32]} 38. Re1 {[%clk 0:14:19]} 38... Qxb2 {[%clk
0:15:18]} 39. Qxd8 {[%clk 0:14:12]} 39... Qxb4 {[%clk 0:15:37]} 40. Rd1 {[%clk
0:12:31]} 40... Qb3 {[%clk 0:10:40]} 41. Rf1 {[%clk 0:11:53]} 41... Qe3+ {[%clk
0:07:26]} 42. Kh1 {[%clk 0:12:12]} 42... Qd3 {[%clk 0:07:09]} 43. Qf8+ {[%clk
0:12:13]} 43... Kg5 {[%clk 0:07:18]} 44. h4+ {[%clk 0:12:01]} 44... Kh5 {[%clk
0:06:11]} 45. Rc1 {[%clk 0:07:29]} 45... Nxd6 {[%clk 0:05:38]} 46. Qxf6 {[%clk
0:01:52]} 46... Ne4 {[%clk 0:05:43]} 47. Qe7 {[%clk 0:00:39]} 47... h6 {[%clk
0:04:50]} 48. Qe5 {[%clk 0:00:34]} 48... Qe3 {[%clk 0:04:03]} 49. Qc7 {[%clk
0:00:32]} 49... Nf2+ {[%clk 0:03:03]} 50. Kh2 {[%clk 0:00:56]} 50... Ng4+ {[%clk
0:03:14]} 51. Kh1 {[%clk 0:01:25]} 51... Qf2 {[%clk 0:02:23]} 52. Qd6 {[%clk
0:00:40]} 52... Qxh4+ {[%clk 0:02:12]} 53. Kg1 {[%clk 0:01:10]} 53... Qf2+
{[%clk 0:02:37]} 54. Kh1 {[%clk 0:01:39]} 54... Qe3 {[%clk 0:01:59]} 55. Qc7
{[%clk 0:01:55]} 55... Nf2+ {[%clk 0:01:53]} 56. Kh2 {[%clk 0:02:24]} 56... Nd3
{[%clk 0:01:45]} 57. Rf1 {[%clk 0:02:03]} 57... Ne5 {[%clk 0:01:27]} 58. Qc2
{[%clk 0:00:55]} 58... Ng4+ {[%clk 0:01:22]} 59. Kh1 {[%clk 0:01:20]} 59... Qe5
{[%clk 0:01:32]} 60. g3 {[%clk 0:01:16]} 60... Qd5+ {[%clk 0:01:04]} 61. Kg1
{[%clk 0:01:26]} 61... a3 {[%clk 0:01:12]} 62. Qc3 {[%clk 0:01:02]} 62... a2
{[%clk 0:01:12]} 63. Ra1 {[%clk 0:00:51]} 63... Qb5 {[%clk 0:01:16]} 64. Qc2
{[%clk 0:00:35]} 64... Qe5 {[%clk 0:00:59]} 65. Qc1 0-1

[Variant "Standard"]
[Site "Europe Echecs"]

[Event "Championnat du monde jeunes U10"]
[Date "2024.11.19"]
[White "Kadyr, Aldiyar"]
[Black "Bulat, Mansur"]
[WhiteElo "1759"]
[BlackElo "1610"]
[Round "5.44"]
[Result "1-0"]
[TimeControl "5400+30"]

1. e4 {[%clk 1:30:00]} 1... c6 {[%clk 1:30:00]} 2. d4 {[%clk 1:29:00]} 2... d5
{[%clk 1:29:00]} 3. Nc3 {[%clk 1:28:30]} 3... dxe4 {[%clk 1:28:56]} 4. Nxe4
{[%clk 1:28:00]} 4... Bf5 {[%clk 1:28:24]} 5. Ng3 {[%clk 1:27:30]} 5... Bg6
{[%clk 1:28:30]} 6. c3 {[%clk 1:27:30]} 6... Nf6 {[%clk 1:27:35]} 7. Nh3 {[%clk
1:26:54]} 7... e6 {[%clk 1:26:10]} 8. Nf4 {[%clk 1:25:33]} 8... Bd6 {[%clk
1:24:53]} 9. Bd3 {[%clk 1:21:27]} 9... Bxd3 {[%clk 1:20:12]} 10. Qxd3 {[%clk
1:21:37]} 10... Bxf4 {[%clk 1:15:38]} 11. Bxf4 Qe7 {[%clk 1:12:56]} 12. O-O
{[%clk 1:20:35]} 12... O-O {[%clk 1:12:48]} 13. Rfe1 {[%clk 1:19:31]} 13... Nd5
{[%clk 1:07:59]} 14. Bd2 {[%clk 1:18:42]} 14... Qc7 {[%clk 1:04:42]} 15. Ne4
{[%clk 1:17:30]} 15... Nd7 {[%clk 1:02:34]} 16. c4 {[%clk 1:14:13]} 16... N5f6
{[%clk 1:02:43]} 17. Re3 {[%clk 1:09:42]} 17... Nxe4 {[%clk 0:56:20]} 18. Qxe4
Nf6 {[%clk 0:54:49]} 19. Qh4 {[%clk 1:10:01]} 19... Rfd8 {[%clk 0:46:45]} 20.
Rg3 {[%clk 1:08:38]} 20... Ne8 {[%clk 0:35:23]} 21. Rh3 {[%clk 1:04:44]} 21...
Nf6 {[%clk 0:29:54]} 22. Rg3 {[%clk 1:03:58]} 22... Ne8 {[%clk 0:29:24]} 23. Rh3
{[%clk 1:04:21]} 23... Nf6 {[%clk 0:29:49]} 24. Bg5 {[%clk 1:02:52]} 24... Qe7
{[%clk 0:20:19]} 25. Rf3 {[%clk 1:02:42]} 25... Rd7 {[%clk 0:16:00]} 26. Rxf6
{[%clk 1:01:34]} 26... Qb4 {[%clk 0:10:00]} 27. Rf3 {[%clk 1:00:03]} 27... Qxb2
{[%clk 0:09:42]} 28. Rd1 {[%clk 0:59:31]} 28... Qxa2 {[%clk 0:09:11]} 29. Rh3
{[%clk 0:57:48]} 29... Qc2 {[%clk 0:07:13]} 30. Rc1 {[%clk 0:57:41]} 30... Qg6
{[%clk 0:05:59]} 31. Rg3 {[%clk 0:57:21]} 31... Kh8 {[%clk 0:05:35]} 32. h3
{[%clk 0:55:05]} 32... b6 {[%clk 0:05:18]} 33. Be3 {[%clk 0:53:58]} 33... Qf6
{[%clk 0:04:52]} 34. Qe4 {[%clk 0:53:23]} 34... Rc8 {[%clk 0:04:48]} 35. Rd1
{[%clk 0:52:11]} 35... Qd8 {[%clk 0:04:21]} 36. Qe5 {[%clk 0:51:19]} 36... Qg8
{[%clk 0:04:09]} 37. Bg5 {[%clk 0:46:49]} 37... Rf8 {[%clk 0:03:02]} 38. Bf6
{[%clk 0:46:44]} 38... h6 {[%clk 0:02:43]} 39. Rxg7 {[%clk 0:45:53]} 39... Rc8
{[%clk 0:02:20]} 40. Rxg8+ {[%clk 0:46:05]} 40... Kxg8 {[%clk 0:02:46]} 41. Qg3+
{[%clk 0:46:29]} 41... Kf8 {[%clk 0:03:06]} 42. Qg7+ {[%clk 0:46:55]} 42... Ke8
{[%clk 0:03:25]} 43. Qh8# {[%clk 0:47:09]} 1-0

[Variant "Standard"]
[Site "Europe Echecs"]

[Event "Championnat du monde jeunes U10"]
[Date "2024.11.19"]
[White "Vardanyan, Armen Art."]
[Black "Munoz Padilla, Andres"]
[WhiteElo "1735"]
[BlackElo "1604"]
[Round "5.45"]
[Result "1-0"]
[TimeControl "5400+30"]

1. d4 {[%clk 1:30:56]} 1... Nf6 {[%clk 1:30:44]} 2. c4 {[%clk 1:31:17]} 2... g6
{[%clk 1:30:50]} 3. Nc3 {[%clk 1:31:35]} 3... Bg7 {[%clk 1:30:49]} 4. e4 {[%clk
1:31:38]} 4... O-O {[%clk 1:30:32]} 5. f3 {[%clk 1:31:37]} 5... d6 {[%clk
1:30:21]} 6. Be3 {[%clk 1:32:00]} 6... e5 {[%clk 1:30:05]} 7. d5 {[%clk
1:32:05]} 7... Nbd7 {[%clk 1:29:15]} 8. Qd2 {[%clk 1:31:47]} 8... a5 {[%clk
1:26:37]} 9. O-O-O {[%clk 1:31:42]} 9... Ne8 {[%clk 1:18:00]} 10. g4 {[%clk
1:29:44]} 10... c6 {[%clk 1:07:37]} 11. h4 {[%clk 1:27:07]} 11... cxd5 {[%clk
1:07:31]} 12. Nxd5 {[%clk 1:27:25]} 12... b6 {[%clk 1:01:48]} 13. h5 {[%clk
1:26:56]} 13... Bb7 {[%clk 1:01:56]} 14. hxg6 {[%clk 1:27:09]} 14... fxg6 {[%clk
1:02:12]} 15. Qh2 {[%clk 1:27:16]} 15... Ndf6 {[%clk 1:01:44]} 16. Bxb6 {[%clk
1:27:06]} 16... Qb8 {[%clk 1:01:26]} 17. c5 {[%clk 1:25:51]} 17... Bxd5 {[%clk
1:01:24]} 18. exd5 {[%clk 1:25:42]} 18... dxc5 {[%clk 0:59:18]} 19. g5 {[%clk
1:20:32]} 19... Nh5 {[%clk 0:59:38]} 20. Bxc5 {[%clk 1:15:10]} 20... Qc7 {[%clk
1:00:03]} 21. Qc2 {[%clk 1:14:37]} 21... Rc8 {[%clk 1:00:29]} 22. Bh3 {[%clk
1:14:47]} 22... Nd6 {[%clk 0:56:31]} 23. Bxc8 {[%clk 1:13:11]} 23... Rxc8 {[%clk
0:56:56]} 24. Ne2 {[%clk 1:12:24]} 24... Qxc5 {[%clk 0:57:08]} 25. Qxc5 {[%clk
1:12:49]} 25... Rxc5+ {[%clk 0:57:25]} 26. Kb1 {[%clk 1:13:18]} 26... e4 {[%clk
0:55:42]} 27. fxe4 {[%clk 1:12:16]} 27... Nxe4 {[%clk 0:56:05]} 28. d6 {[%clk
1:12:03]} 28... Rc8 {[%clk 0:56:28]} 29. d7 {[%clk 1:11:32]} 29... Rd8 {[%clk
0:56:51]} 30. Rd5 {[%clk 1:11:49]} 30... Kf7 {[%clk 0:54:01]} 31. Rhd1 {[%clk
1:04:56]} 31... Ke7 {[%clk 0:53:35]} 32. Nd4 {[%clk 1:04:21]} 32... Bxd4 {[%clk
0:52:37]} 33. R1xd4 {[%clk 1:04:17]} 33... Nhg3 {[%clk 0:52:30]} 34. Re5+ {[%clk
1:04:13]} 34... Kf7 {[%clk 0:52:43]} 35. Rd3 {[%clk 1:03:07]} 35... a4 {[%clk
0:52:50]} 36. Rf3+ {[%clk 1:03:27]} 36... Nf5 {[%clk 0:51:27]} 37. Rxe4 {[%clk
1:03:46]} 37... Rxd7 {[%clk 0:51:43]} 38. Rxa4 {[%clk 1:04:11]} 38... Rd1+
{[%clk 0:52:02]} 39. Kc2 {[%clk 1:04:36]} 39... Rg1 {[%clk 0:52:23]} 40. Ra7+
{[%clk 1:04:46]} 40... Ke6 {[%clk 0:52:20]} 41. Rd3 {[%clk 1:05:02]} 41... Rxg5
{[%clk 0:52:28]} 42. Rxh7 {[%clk 1:04:42]} 42... Rg2+ {[%clk 0:52:51]} 43. Kb3
{[%clk 1:05:02]} 43... g5 {[%clk 0:53:04]} 44. a4 {[%clk 1:04:55]} 44... g4
{[%clk 0:52:53]} 45. Rh1 {[%clk 1:04:57]} 45... Ng3 {[%clk 0:47:00]} 46. Re1+
{[%clk 1:05:08]} 46... Kf5 {[%clk 0:47:12]} 47. a5 {[%clk 1:05:22]} 47... Ne4
{[%clk 0:47:27]} 48. Rd5+ {[%clk 1:05:38]} 48... Kf4 {[%clk 0:47:11]} 49. Rd4
{[%clk 1:05:29]} 49... g3 {[%clk 0:47:02]} 50. Rdxe4+ {[%clk 1:05:50]} 50... Kf5
51. R4e2 {[%clk 1:06:10]} 1-0

[Variant "Standard"]
[Site "Europe Echecs"]

[Event "Championnat du monde jeunes U10"]
[Date "2024.11.19"]
[White "Tamiolakis, Grigorios"]
[Black "Orsi, Andrea"]
[WhiteElo "1591"]
[BlackElo "1728"]
[Round "5.46"]
[Result "1-0"]
[TimeControl "5400+30"]

1. d4 {[%clk 1:30:57]} 1... d5 {[%clk 1:30:53]} 2. c4 {[%clk 1:31:24]} 2... e6
{[%clk 1:31:13]} 3. Nf3 {[%clk 1:31:43]} 3... Nf6 {[%clk 1:30:56]} 4. Bg5 {[%clk
1:31:59]} 4... Be7 {[%clk 1:31:08]} 5. Nc3 {[%clk 1:32:08]} 5... O-O {[%clk
1:31:12]} 6. e3 {[%clk 1:31:53]} 6... b6 {[%clk 1:31:10]} 7. cxd5 {[%clk
1:32:07]} 7... exd5 {[%clk 1:29:42]} 8. Be2 {[%clk 1:31:08]} 8... Bb7 {[%clk
1:28:58]} 9. O-O {[%clk 1:31:16]} 9... Nbd7 {[%clk 1:28:22]} 10. Rc1 {[%clk
1:29:00]} 10... c5 {[%clk 1:25:56]} 11. Bxf6 {[%clk 1:21:38]} 11... Nxf6 {[%clk
1:24:00]} 12. Qd2 {[%clk 1:19:52]} 12... Rc8 {[%clk 1:09:24]} 13. Rfd1 {[%clk
1:16:52]} 13... Bd6 {[%clk 0:58:19]} 14. dxc5 {[%clk 0:58:39]} 14... bxc5 {[%clk
0:55:12]} 15. Nb5 {[%clk 0:50:37]} 15... Bb8 {[%clk 0:46:53]} 16. b3 {[%clk
0:32:45]} 16... a6 {[%clk 0:36:50]} 17. Nc3 {[%clk 0:31:59]} 17... Re8 {[%clk
0:24:33]} 18. Qb2 {[%clk 0:22:55]} 18... Qd6 {[%clk 0:17:34]} 19. g3 {[%clk
0:07:12]} 19... Qe7 {[%clk 0:17:33]} 20. Kf1 {[%clk 0:05:46]} 20... Be5 {[%clk
0:04:59]} 21. Nxe5 {[%clk 0:05:18]} 21... Qxe5 {[%clk 0:05:23]} 22. Na4 {[%clk
0:05:27]} 22... Qd6 {[%clk 0:02:21]} 23. Bf3 {[%clk 0:04:04]} 23... Bc6 {[%clk
0:00:37]} 24. Kg1 {[%clk 0:03:02]} 24... Bxa4 {[%clk 0:00:53]} 25. bxa4 {[%clk
0:03:24]} 25... Ne4 {[%clk 0:00:35]} 26. Bxe4 {[%clk 0:03:39]} 26... Rxe4 {[%clk
0:00:59]} 27. Qc2 {[%clk 0:03:44]} 27... Qc6 {[%clk 0:01:01]} 28. Qd2 {[%clk
0:03:17]} 28... Rd8 {[%clk 0:01:17]} 29. Qa5 {[%clk 0:03:32]} 29... Rc8 {[%clk
0:00:46]} 30. Rd4 {[%clk 0:02:25]} 30... Rxd4 {[%clk 0:00:46]} 31. exd4 {[%clk
0:02:42]} 31... c4 {[%clk 0:01:08]} 32. Rc3 {[%clk 0:02:30]} 32... Rc7 {[%clk
0:00:40]} 33. Kg2 {[%clk 0:02:31]} 33... Kf8 {[%clk 0:00:35]} 34. Qb4+ Ke8
{[%clk 0:00:42]} 35. Re3+ {[%clk 0:03:15]} 35... Kd7 {[%clk 0:00:32]} 36. Rf3
{[%clk 0:01:47]} 36... Qe6 {[%clk 0:00:38]} 37. Re3 {[%clk 0:01:59]} 37... Qd6
{[%clk 0:00:42]} 38. Qb8 {[%clk 0:01:35]} 38... Rc8 {[%clk 0:00:41]} 39. Qb1
{[%clk 0:01:19]} 39... h6 {[%clk 0:00:32]} 40. Qf5+ {[%clk 0:01:39]} 40... Kc6
{[%clk 0:00:38]} 41. Qxc8+ {[%clk 0:01:59]} 1-0

[Variant "Standard"]
[Site "Europe Echecs"]

[Event "Championnat du monde jeunes U10"]
[Date "2024.11.19"]
[White "Kais, Kristofer"]
[Black "Roth, Elai"]
[WhiteElo "1723"]
[BlackElo "1577"]
[Round "5.47"]
[Result "1-0"]
[TimeControl "5400+30"]

1. d4 {[%clk 1:30:58]} 1... d5 {[%clk 1:30:44]} 2. Bf4 {[%clk 1:31:19]} 2... Nf6
{[%clk 1:30:58]} 3. e3 {[%clk 1:31:43]} 3... e6 {[%clk 1:31:19]} 4. Nf3 {[%clk
1:32:07]} 4... Bd6 {[%clk 1:31:41]} 5. Ne5 {[%clk 1:32:23]} 5... O-O {[%clk
1:30:55]} 6. Nd2 {[%clk 1:32:29]} 6... c6 {[%clk 1:26:10]} 7. Bd3 {[%clk
1:31:43]} 7... Qc7 {[%clk 1:25:43]} 8. O-O {[%clk 1:30:42]} 8... Nbd7 {[%clk
1:24:38]} 9. Ndf3 {[%clk 1:30:01]} 9... c5 {[%clk 1:24:38]} 10. c3 {[%clk
1:29:10]} 10... Ne4 {[%clk 1:16:29]} 11. Qe2 {[%clk 1:21:46]} 11... b6 {[%clk
1:11:25]} 12. Rad1 {[%clk 1:18:12]} 12... f6 {[%clk 1:07:08]} 13. Nxd7 {[%clk
1:16:07]} 13... Qxd7 {[%clk 1:07:23]} 14. Bxe4 {[%clk 1:14:22]} 14... dxe4
{[%clk 1:07:40]} 15. dxc5 {[%clk 1:14:41]} 15... exf3 {[%clk 1:07:30]} 16. Qxf3
{[%clk 1:02:37]} 16... Bb7 {[%clk 1:07:15]} 17. Qh3 {[%clk 1:01:40]} 17... f5
{[%clk 0:59:11]} 18. Rxd6 {[%clk 0:58:19]} 18... Qb5 {[%clk 0:58:19]} 19. Qg3
{[%clk 0:49:24]} 19... Rf6 {[%clk 0:57:43]} 20. Qh4 {[%clk 0:39:38]} 20... Qxc5
{[%clk 0:56:43]} 21. Rfd1 {[%clk 0:37:44]} 21... Bd5 {[%clk 0:56:34]} 22. Be5
{[%clk 0:28:21]} 22... Rh6 {[%clk 0:53:29]} 23. Qd4 {[%clk 0:23:16]} 23... Qb5
{[%clk 0:51:31]} 24. a4 {[%clk 0:20:01]} 24... Qe2 {[%clk 0:50:23]} 25. Rxd5
{[%clk 0:19:27]} 25... exd5 {[%clk 0:45:25]} 26. Qxd5+ {[%clk 0:19:50]} 26...
Kf8 {[%clk 0:45:47]} 27. Qxa8+ {[%clk 0:19:48]} 27... Kf7 {[%clk 0:45:52]} 28.
Rd7+ {[%clk 0:19:54]} 28... Kg6 {[%clk 0:46:09]} 29. Rxg7+ {[%clk 0:19:37]}
29... Kh5 {[%clk 0:46:34]} 30. Qe8+ {[%clk 0:19:20]} 30... Kh4 {[%clk 0:46:32]}
31. Qe7+ {[%clk 0:19:46]} 31... Kh5 {[%clk 0:46:35]} 32. Qg5# 1-0

[Variant "Standard"]
[Site "Europe Echecs"]

[Event "Championnat du monde jeunes U10"]
[Date "2024.11.19"]
[White "Gim, Hajin"]
[Black "Babeikin, Kiryl"]
[WhiteElo "1603"]
[BlackElo "1721"]
[Round "5.48"]
[Result "0-1"]
[TimeControl "5400+30"]

1. e4 {[%clk 1:30:59]} 1... c5 {[%clk 1:30:55]} 2. Nc3 {[%clk 1:31:23]} 2... a6
{[%clk 1:31:22]} 3. f4 {[%clk 1:31:45]} 3... b5 {[%clk 1:31:44]} 4. Nf3 {[%clk
1:32:02]} 4... Bb7 {[%clk 1:32:08]} 5. d4 {[%clk 1:32:22]} 5... cxd4 {[%clk
1:32:31]} 6. Nxd4 {[%clk 1:32:44]} 6... b4 {[%clk 1:32:55]} 7. Nd5 {[%clk
1:31:56]} 7... e6 {[%clk 1:33:20]} 8. Nxb4 {[%clk 1:32:08]} 8... Bxb4+ {[%clk
1:33:46]} 9. c3 {[%clk 1:32:31]} 9... Be7 {[%clk 1:34:10]} 10. Bd3 {[%clk
1:32:56]} 10... d6 {[%clk 1:34:05]} 11. O-O Nf6 {[%clk 1:33:54]} 12. f5 {[%clk
1:33:16]} 12... e5 {[%clk 1:34:03]} 13. Nb3 {[%clk 1:33:29]} 13... d5 {[%clk
1:33:47]} 14. exd5 {[%clk 1:32:34]} 14... Qxd5 {[%clk 1:34:12]} 15. Qe2 {[%clk
1:32:21]} 15... Nbd7 {[%clk 1:33:32]} 16. Bg5 {[%clk 1:31:59]} 16... O-O {[%clk
1:32:47]} 17. Rad1 {[%clk 1:31:13]} 17... Qc6 {[%clk 1:33:08]} 18. Kh1 {[%clk
1:31:00]} 18... Rfe8 {[%clk 1:28:08]} 19. Rd2 {[%clk 1:24:19]} 19... Nd5 {[%clk
1:24:57]} 20. Bxe7 {[%clk 1:23:38]} 20... Nf4 {[%clk 1:19:53]} 21. Rxf4 {[%clk
1:20:05]} 21... exf4 {[%clk 1:20:16]} 22. Na5 {[%clk 1:19:40]} 22... f3 {[%clk
1:17:55]} 23. Nxc6 {[%clk 1:18:39]} 23... fxe2 {[%clk 1:18:21]} 24. Bxe2 {[%clk
1:16:54]} 24... Bxc6 {[%clk 1:18:49]} 25. Ba3 {[%clk 1:17:07]} 25... Bb5 {[%clk
1:19:08]} 26. c4 {[%clk 1:17:17]} 26... Bxc4 {[%clk 1:19:32]} 27. Rxd7 {[%clk
1:17:35]} 27... Rxe2 {[%clk 1:19:58]} 28. h3 {[%clk 1:17:55]} 28... h5 {[%clk
1:20:16]} 29. Rd4 {[%clk 1:18:07]} 29... Bxa2 {[%clk 1:20:40]} 30. Kh2 {[%clk
1:18:18]} 30... Rc8 {[%clk 1:21:06]} 31. Kg3 {[%clk 1:18:01]} 31... Rcc2 {[%clk
1:21:25]} 32. Kh4 {[%clk 1:18:08]} 32... Rc4 {[%clk 1:21:31]} 33. Rxc4 {[%clk
1:18:21]} 33... Bxc4 {[%clk 1:21:57]} 0-1

[Variant "Standard"]
[Site "Europe Echecs"]